bitfinex/quotes_SOLUSD_20220302
["timestamp","ask_amount","ask_price","bid_price","bid_amount"]
[1646250343849,437.9,101.43,101.34,224.23830561]
[1646250344249,437.9,101.43,101.34,226.78734564]
[1646250344450,4.43916215,101.46,101.34,244.15327965]
[1646250344650,4.43916215,101.46,101.36,161.65800369]
[1646250344850,4.43916215,101.46,101.37,70.19752097]
[1646250345052,4.43916215,101.46,101.37,70.44752097]
[1646250345651,4.43916215,101.46,101.37,70.19752097]
[1646250345856,4.43916215,101.46,101.37,70.44752097]
[1646250346052,4.43916215,101.46,101.37,85.24582097]
[1646250346352,4.43916215,101.46,101.37,82.75504566]
[1646250346552,4.43916215,101.46,101.37,67.95674566]
[1646250346553,19.24016215,101.46,101.37,67.95674566]
[1646250346752,15.29616215,101.46,101.37,67.95674566]
[1646250346953,19.24016215,101.46,101.37,67.95674566]
[1646250348154,4.43916215,101.46,101.37,127.80674566]
[1646250348355,0.49516215,101.46,101.37,129.63327278]
[1646250348854,0.49516215,101.46,101.37,84.83187278]
[1646250349056,3.944,101.45,101.37,12.0]
[1646250349562,0.11043625,101.44,101.37,12.0]
[1646250349760,0.11043625,101.44,101.34,50.74047221]
[1646250349961,0.11043625,101.44,101.35,12.0]
[1646250350161,0.11043625,101.44,101.34,104.90961143]
[1646250350365,438.0885912,101.45,101.34,104.90961143]
[1646250350564,437.9,101.45,101.34,104.90961143]
[1646250350763,3.944,101.44,101.34,104.90961143]
[1646250351164,14.8048,101.43,101.34,62.57968628]
[1646250351365,487.2517,101.45,101.34,60.4189]
[1646250351765,5.0,101.44,101.34,60.4189]
[1646250351963,437.9,101.45,101.34,60.4189]
[1646250352164,442.9,101.44,101.34,60.4189]
[1646250352464,492.2538,101.44,101.34,60.4189]
[1646250352663,446.96993428,101.43,101.31,117.7082]
[1646250352866,458.96993428,101.43,101.31,102.9017]
[1646250353763,458.844,101.43,101.31,102.9017]
[1646250353963,458.844,101.43,101.32,52.36693487]
[1646250354163,14.8098,101.39,101.32,52.36693487]
[1646250354565,14.8098,101.39,101.32,50.36693487]
[1646250354965,14.8098,101.39,101.31,125.8236]
[1646250356165,14.8101,101.38,101.31,125.8236]
[1646250356365,13.3101,101.38,101.31,125.8236]
[1646250356566,53.3198,101.4,101.31,125.8236]
[1646250357170,14.8118,101.37,101.31,125.8236]
[1646250357369,14.8118,101.37,101.3,51.57589829]
[1646250358768,14.8118,101.37,101.3,53.56833928]
[1646250358968,14.8118,101.37,101.3,51.57589829]
[1646250359569,23.2572,101.39,101.3,51.57589829]
[1646250359769,18.2572,101.39,101.3,54.03241875]
[1646250359970,14.8102,101.39,101.3,54.03241875]
[1646250360369,49.3738,101.4,101.3,54.03241875]
[1646250360773,466.6366,101.41,101.28,47.0741]
[1646250360971,0.12656828,101.38,101.28,47.0741]
[1646250361270,3.947,101.37,101.28,47.0741]
[1646250361670,17.0,101.38,101.28,47.0741]
[1646250361871,17.0,101.38,101.29,51.55043728]
[1646250362078,14.8151,101.35,101.28,47.0741]
[1646250362372,14.8151,101.35,101.28,44.00658781]
[1646250362573,14.8151,101.35,101.28,42.0741]
[1646250363178,437.9,101.36,101.24,108.6239]
[1646250363374,437.9,101.36,101.24,96.1239]
[1646250363375,3.948,101.35,101.24,96.1239]
[1646250363573,15.948,101.35,101.25,44.81846171]
[1646250364273,15.948,101.35,101.24,96.1239]
[1646250364474,20.948,101.35,101.24,96.1239]
[1646250365074,14.8206,101.31,101.24,96.1239]
[1646250365275,14.8206,101.31,101.25,49.66596909]
[1646250365678,49.4028,101.34,101.25,52.11722807]
[1646250366675,49.4028,101.34,101.25,2.45125898]
[1646250366876,0.29910889,101.31,101.19,5.5001]
[1646250367095,3.95,101.31,101.2,49.5809]
[1646250367494,1.74556538,101.3,101.2,49.5809]
[1646250367695,1.74556538,101.3,101.21,43.49388173]
[1646250367895,14.8259,101.28,101.21,43.49388173]
[1646250369897,452.7226,101.3,101.21,105.56835704]
[1646250370099,452.7226,101.3,101.21,120.11739707]
[1646250370298,452.7226,101.3,101.21,60.26739707]
[1646250371100,14.8236,101.29,101.21,12.0]
[1646250371300,14.8236,101.29,101.2,49.5809]
[1646250371301,3.95,101.29,101.2,51.88371811]
[1646250371903,437.9,101.3,101.2,52.13371811]
[1646250372102,14.8235,101.29,101.21,53.78950114]
[1646250372509,9.8235,101.29,101.21,53.78950114]
[1646250373505,9.8235,101.29,101.2,64.6544]
[1646250373703,14.8249,101.28,101.2,51.62330311]
[1646250374605,14.8249,101.28,101.2,49.5809]
[1646250374807,18.7759,101.28,101.2,49.5809]
[1646250375708,18.7759,101.28,101.2,100.62998869]
[1646250376407,18.7759,101.28,101.2,49.5809]
[1646250378009,23.7759,101.28,101.18,78.7908]
[1646250378210,0.17338516,101.27,101.18,78.7908]
[1646250378408,14.8301,101.25,101.18,78.7908]
[1646250380110,14.8301,101.25,101.17,179.0]
[1646250380321,3.952,101.24,101.17,179.0]
[1646250380512,14.8338,101.23,101.17,179.0]
[1646250380913,18.7858,101.23,101.17,179.0]
[1646250381710,14.8338,101.23,101.17,179.0]
[1646250383316,18.7858,101.23,101.17,179.0]
[1646250383516,23.7858,101.23,101.17,179.0]
[1646250383715,18.7858,101.23,101.17,179.0]
[1646250383919,23.7858,101.23,101.17,179.0]
[1646250384316,437.9,101.22,101.17,179.0]
[1646250384519,14.8379,101.21,101.17,179.0]
[1646250385740,18.7899,101.21,101.17,179.0]
[1646250386319,437.9,101.22,101.17,179.0]
[1646250386919,3.952,101.27,101.17,181.46994312]
[1646250387119,3.952,101.27,101.18,0.13533372]
[1646250387320,3.952,101.27,101.18,56.34831748]
[1646250387521,3.952,101.27,101.18,56.46298376]
[1646250387722,441.852,101.27,101.18,56.46298376]
[1646250388021,456.6797,101.27,101.18,56.46298376]
[1646250388222,456.6797,101.27,101.18,0.25]
[1646250388722,456.6797,101.27,101.17,181.71994312]
[1646250389124,456.6797,101.27,101.18,52.9544529]
[1646250389322,456.6797,101.27,101.18,55.63540426]
[1646250389521,452.7277,101.27,101.18,67.63540426]
[1646250391023,452.7277,101.27,101.18,82.46180426]
[1646250391428,452.7277,101.27,101.18,67.38540426]
[1646250392026,437.9,101.26,101.18,64.9544529]
[1646250392224,452.7293,101.26,101.18,64.9544529]
[1646250392424,452.7293,101.26,101.18,12.0]
[1646250393024,452.7293,101.26,101.18,12.25]
[1646250393427,452.7293,101.26,101.18,12.0]
[1646250393927,452.7293,101.26,101.17,226.84150801]
[1646250394129,452.7293,101.26,101.17,241.91940801]
[1646250395930,452.7293,101.26,101.17,227.09150801]
[1646250396833,452.7293,101.26,101.17,181.56062755]
[1646250397031,0.34991937,101.25,101.17,181.31062755]
[1646250397232,14.8313,101.24,101.17,181.56062755]
[1646250397934,14.8313,101.24,101.17,181.31062755]
[1646250398136,458.42879797,101.24,101.17,179.0]
[1646250399535,437.9,101.22,101.17,179.0]
[1646250399735,452.7343,101.22,101.17,179.0]
[1646250400757,437.9,101.22,101.17,179.25]
[1646250400956,437.9,101.22,101.18,43.1876201]
[1646250401156,437.9,101.22,101.18,45.8908412]
[1646250401358,437.9,101.22,101.18,57.8908412]
[1646250402157,437.9,101.22,101.18,72.7173412]
[1646250402758,437.9,101.22,101.18,0.25]
[1646250402956,437.9,101.22,101.17,181.3789041]
[1646250403856,437.9,101.22,101.18,57.22290926]
[1646250404056,437.9,101.22,101.18,57.47290926]
[1646250404756,437.9,101.22,101.18,0.25]
[1646250405263,437.9,101.22,101.17,181.3789041]
[1646250405559,437.9,101.22,101.17,179.0]
[1646250406360,452.7343,101.22,101.17,179.0]
[1646250406960,437.9,101.2,101.17,179.0]
[1646250407162,3.03219997,101.19,101.17,179.0]
[1646250411370,437.9,101.18,101.17,179.0]
[1646250413972,440.93219997,101.19,101.17,179.0]
[1646250423084,440.93219997,101.19,101.17,108.09390659]
[1646250424389,440.93219997,101.19,101.17,60.60440728]
[1646250424591,457.51619794,101.19,101.17,60.60440728]
[1646250424786,455.77069997,101.19,101.17,60.60440728]
[1646250425789,459.72269997,101.19,101.17,60.60440728]
[1646250426593,455.77069997,101.19,101.17,60.60440728]
[1646250429020,3.952,101.18,101.1,23.4922]
[1646250429219,0.10520247,101.17,101.1,23.4922]
[1646250429519,14.8454,101.15,101.1,23.4922]
[1646250429720,452.7454,101.15,101.08,23.8266]
[1646250431122,452.7454,101.15,101.08,26.02758581]
[1646250431324,452.7454,101.15,101.09,56.7171546]
[1646250431524,437.9,101.15,101.09,56.9671546]
[1646250431724,452.7424,101.17,101.09,56.9671546]
[1646250431923,437.9,101.11,101.09,0.25]
[1646250432123,452.7424,101.17,101.09,0.25]
[1646250432323,437.9,101.11,101.09,0.25]
[1646250432523,437.9,101.11,101.08,2.58746678]
[1646250432722,3.03219997,101.1,101.08,2.58746678]
[1646250432925,3.03219997,101.1,101.08,0.25]
[1646250433122,3.03219997,101.1,101.07,15.0924]
[1646250434423,437.9,101.09,101.07,0.25]
[1646250434625,437.9,101.09,101.05,37.6103]
[1646250435224,437.9,101.09,101.05,15.0946]
[1646250435624,453.856,101.16,101.05,15.0946]
[1646250435824,437.9,101.09,101.06,78.35644892]
[1646250436024,437.9,101.09,101.06,0.25]
[1646250436423,3.03219997,101.08,101.06,0.25]
[1646250437125,3.03219997,101.08,101.05,64.84804811]
[1646250437326,437.9,101.09,101.05,64.84804811]
[1646250437927,437.9,101.09,101.05,15.0946]
[1646250438927,407.8705,101.09,101.06,14.844]
[1646250439129,407.9,101.11,101.07,58.62674773]
[1646250439327,407.9,101.11,101.07,58.87674773]
[1646250440127,407.9,101.11,101.07,73.71914773]
[1646250440326,407.9,101.11,101.07,17.42019516]
[1646250440726,407.9,101.11,101.07,15.0924]
[1646250440927,407.9,101.11,101.07,0.25]
[1646250441129,407.9,101.11,101.05,0.25]
[1646250441326,407.9,101.11,101.05,12.0]
[1646250441526,407.9,101.11,101.05,12.25]
[1646250441727,407.9,101.11,101.06,14.8441]
[1646250441927,407.9,101.11,101.06,17.33008374]
[1646250442132,407.9,101.11,101.06,77.37793475]
[1646250442931,407.9,101.11,101.07,14.8424]
[1646250443134,208.3,101.11,101.08,115.97029039]
[1646250443331,208.3,101.19,101.1,59.6]
[1646250443529,208.3,101.15,101.1,61.72657841]
[1646250444133,208.3,101.15,101.11,14.8366]
[1646250444333,208.3,101.15,101.11,0.25]
[1646250445232,208.3,101.13,101.11,0.25]
[1646250445432,208.3,101.13,101.09,21.0888]
[1646250446534,208.3,101.13,101.09,15.0888]
[1646250446734,208.3,101.11,101.08,38.91782798]
[1646250446934,3.03219997,101.1,101.08,23.5377]
[1646250447540,3.03219997,101.1,101.08,0.25]
[1646250447934,211.33219997,101.1,101.07,0.25]
[1646250448137,211.33219997,101.1,101.06,15.63012798]
[1646250448334,211.33219997,101.1,101.04,47.3319]
[1646250448539,211.33219997,101.1,101.05,6.0]
[1646250449335,211.33219997,101.1,101.04,47.3319]
[1646250449536,211.33219997,101.1,101.04,47.5819]
[1646250450136,211.33219997,101.1,101.04,62.4289]
[1646250452536,211.33219997,101.1,101.04,114.05632113]
[1646250452738,211.33219997,101.1,101.04,135.24308311]
[1646250452938,211.33219997,101.1,101.04,137.65596171]
[1646250453137,211.33219997,101.1,101.04,86.02854058]
[1646250453938,211.33219997,101.1,101.04,88.57758061]
[1646250454439,211.33219997,101.1,101.04,86.16470201]
[1646250454638,211.33219997,101.1,101.04,64.97794003]
[1646250455640,211.33219997,101.1,101.04,116.3582585]
[1646250455842,208.3,101.1,101.05,14.8454]
[1646250456041,212.256,101.14,101.05,15.0954]
[1646250456639,208.3,101.14,101.05,15.0954]
[1646250456840,223.1462,101.14,101.05,0.25]
[1646250457039,235.1462,101.14,101.05,6.25]
[1646250457540,235.1462,101.14,101.05,0.25]
[1646250457742,235.1462,101.14,101.05,6.0]
[1646250457940,3.956,101.13,101.04,47.3319]
[1646250458140,208.3,101.05,101.04,47.3319]
[1646250458344,208.3,101.05,101.03,244.11315638]
[1646250458345,208.3,101.05,101.03,146.80335638]
[1646250458542,208.3,101.05,101.03,21.1926527]
[1646250458743,231.184,101.13,101.03,3.956]
[1646250458943,208.3,101.04,101.03,3.956]
[1646250459142,3.959,101.11,101.03,3.956]
[1646250459743,208.3,101.05,101.03,3.956]
[1646250460043,3.03219997,101.04,101.03,4.206]
[1646250461564,3.03219997,101.04,101.03,0.25]
[1646250461763,3.03219997,101.04,101.01,30.182]
[1646250462164,3.03219997,101.04,100.99,181.89682234]
[1646250462165,211.33219997,101.04,100.99,196.75032234]
[1646250462362,208.3,101.03,100.99,62.7156]
[1646250462563,21.29548466,101.12,100.98,112.9]
[1646250462564,208.3,101.02,100.98,112.9]
[1646250462863,208.3,101.01,100.98,112.9]
[1646250463063,3.03219997,101.0,100.98,112.9]
[1646250464562,3.03219997,101.0,100.98,113.15]
[1646250464964,3.03219997,101.0,100.98,112.9]
[1646250466467,3.03219997,101.0,100.98,113.15]
[1646250469471,3.03219997,101.0,100.98,112.9]
[1646250469676,3.03219997,101.0,100.97,19.8573]
[1646250470075,3.03219997,101.0,100.97,14.8573]
[1646250470476,3.03219997,101.0,100.97,19.8573]
[1646250471082,3.03219997,101.0,100.97,20.1073]
[1646250471278,3.03219997,101.0,100.97,35.2059]
[1646250473280,208.3,100.99,100.97,35.2059]
[1646250473482,208.3,101.0,100.97,35.2059]
[1646250473684,208.3,100.99,100.97,35.2059]
[1646250474487,208.3,100.99,100.98,59.6]
[1646250474684,223.1555,101.08,100.98,61.93890878]
[1646250474882,223.1555,101.08,100.98,123.52720878]
[1646250475082,208.3,100.99,100.98,61.8383]
[1646250475283,208.3,101.01,100.98,116.48736055]
[1646250475487,208.3,101.02,101.0,99.63]
[1646250475682,208.3,101.02,101.01,12.0]
[1646250475883,212.26,101.08,101.01,14.79904003]
[1646250476484,208.3,101.08,101.01,12.25]
[1646250476783,3.958,101.07,101.01,27.1014]
[1646250476983,208.3,101.02,101.01,27.1014]
[1646250477584,208.3,101.02,101.01,87.10284723]
[1646250477984,208.3,101.02,101.01,27.1014]
[1646250478184,211.33219997,101.02,101.01,27.1014]
[1646250479387,211.33219997,101.02,101.01,0.25]
[1646250479693,211.33219997,101.02,101.0,15.4243]
[1646250479889,211.33219997,101.02,101.0,27.4243]
[1646250480389,208.3,101.02,101.0,27.4243]
[1646250481187,208.3,101.02,101.0,42.277]
[1646250481592,223.1534,101.09,101.0,42.277]
[1646250481788,223.1534,101.09,101.0,89.1375]
[1646250482288,3.958,101.08,101.0,89.1375]
[1646250482688,3.958,101.08,101.0,73.9632]
[1646250483288,3.958,101.08,101.0,61.9632]
[1646250484092,212.258,101.08,101.0,117.56705876]
[1646250484292,212.258,101.08,101.01,26.8511]
[1646250484491,208.3,101.08,101.01,27.1011]
[1646250484792,208.3,101.08,101.01,29.65014003]
[1646250484991,212.258,101.09,101.01,89.25014003]
[1646250485392,212.258,101.09,101.02,50.6544201]
[1646250485591,208.3,101.09,101.02,0.25]
[1646250486291,249.7883,101.1,101.02,0.25]
[1646250486694,249.7883,101.1,101.01,142.99264397]
[1646250487294,249.7883,101.1,101.01,17.65014003]
[1646250487593,249.7883,101.1,101.0,61.5657]
[1646250487792,0.16749786,101.09,100.99,33.93671257]
[1646250487992,18.8137,101.08,100.99,19.08411257]
[1646250488192,227.1137,101.08,100.99,3.958]
[1646250488393,239.1137,101.08,100.99,3.958]
[1646250488593,260.46645737,101.08,100.99,3.958]
[1646250490596,240.86001513,101.08,100.99,3.958]
[1646250491197,240.86001513,101.08,100.99,4.208]
[1646250494400,0.27523941,101.07,100.99,4.208]
[1646250494605,14.8582,101.06,100.99,4.208]
[1646250494797,18.8172,101.06,100.99,4.208]
[1646250496299,227.1172,101.06,100.99,3.958]
[1646250496501,233.2842,101.06,100.99,3.958]
[1646250496802,1.74631513,101.05,100.99,3.958]
[1646250497600,13.74631513,101.05,100.99,3.958]
[1646250498101,63.28391513,101.05,100.99,3.958]
[1646250498506,0.10641284,101.04,100.99,3.958]
[1646250498908,14.8615,101.04,100.99,3.958]
[1646250499309,14.8615,101.04,100.95,30.20484003]
[1646250499512,0.32282376,101.03,100.89,141.80102923]
[1646250499709,208.3,100.91,100.89,160.9094]
[1646250499910,183.73219997,100.91,100.89,124.9]
[1646250500109,180.7,100.91,100.89,124.9]
[1646250500308,180.7,100.91,100.9,19.6547]
[1646250500709,180.7,100.91,100.9,14.6547]
[1646250500910,180.7,100.91,100.9,14.9047]
[1646250501112,180.7,100.91,100.9,29.7718]
[1646250501310,180.7,100.91,100.9,34.7718]
[1646250502428,3.964,100.99,100.91,328.68]
[1646250502630,14.8645,101.01,100.93,59.6]
[1646250502829,49.5434,101.04,100.94,0.41093389]
[1646250503130,63.28971513,101.04,100.94,0.41093389]
[1646250503329,63.28971513,101.04,100.93,27.19304003]
[1646250504130,63.28971513,101.04,100.93,42.05564003]
[1646250504731,5.0,101.03,100.93,42.05564003]
[1646250505329,5.0,101.03,100.93,41.80564003]
[1646250505531,5.0,101.03,100.93,26.94304003]
[1646250505532,3.96,101.02,100.93,26.94304003]
[1646250505730,3.96,101.02,100.93,41.85754003]
[1646250506331,3.96,101.02,100.93,26.94304003]
[1646250506630,3.96,101.02,100.93,24.644]
[1646250507130,15.96,101.02,100.93,24.644]
[1646250507632,15.96,101.02,100.94,0.1205905]
[1646250508033,14.8648,101.01,100.93,24.644]
[1646250508233,0.12014888,101.0,100.93,24.644]
[1646250508633,65.5156,101.02,100.93,24.644]
[1646250510038,14.8669,101.01,100.93,24.644]
[1646250510235,3.96,101.0,100.93,24.644]
[1646250510735,3.96,101.01,100.93,24.644]
[1646250511635,15.96,101.01,100.93,0.25]
[1646250511836,15.96,101.01,100.91,27.17304003]
[1646250512038,30.8275,101.01,100.91,27.17304003]
[1646250512439,30.8275,101.01,100.91,24.624]
[1646250513238,37.57452407,101.01,100.91,24.624]
[1646250513638,37.57452407,101.01,100.91,24.374]
[1646250515042,37.57452407,101.01,100.91,24.624]
[1646250516441,0.53469719,101.0,100.91,24.124]
[1646250516645,18.8306,100.99,100.91,24.124]
[1646250518042,18.8306,100.99,100.92,49.85051073]
[1646250518241,18.8306,100.99,100.92,50.10051073]
[1646250518841,18.8306,100.99,100.92,0.25]
[1646250519442,18.8306,100.99,100.91,24.124]
[1646250520547,18.8306,100.99,100.92,0.3091115]
[1646250520945,14.8686,100.99,100.92,53.75859944]
[1646250521245,14.8686,100.99,100.92,54.00859944]
[1646250521746,14.8686,100.99,100.92,0.25]
[1646250522146,14.8686,100.99,100.91,24.124]
[1646250524752,3.962,100.98,100.91,24.124]
[1646250527453,3.962,100.98,100.92,59.50224108]
[1646250527653,3.962,101.0,100.93,0.26674352]
[1646250527855,14.8644,101.01,100.93,96.81982342]
[1646250528056,14.8644,101.01,100.94,2.14380795]
[1646250528274,14.8644,101.01,100.94,0.25]
[1646250529456,14.8644,101.01,100.93,62.74087119]
[1646250529854,14.8644,101.01,100.93,74.74087119]
[1646250530258,3.96,101.02,100.95,44.2156758]
[1646250530458,3.96,101.02,100.95,0.25]
[1646250530657,3.96,101.03,100.95,0.25]
[1646250531560,3.96,101.03,100.94,25.60903255]
[1646250532062,18.8226,101.03,100.94,25.60903255]
[1646250534760,0.14098251,101.02,100.94,23.2325]
[1646250534961,18.8258,101.01,100.94,23.2325]
[1646250535161,18.8258,101.01,100.91,5.0]
[1646250535362,20.56829102,101.01,100.91,5.25]
[1646250535985,20.56829102,101.01,100.91,0.25]
[1646250536389,20.56829102,101.01,100.9,40.30172282]
[1646250536588,1.74249102,101.0,100.9,25.43502282]
[1646250536886,18.8314,100.99,100.9,25.43502282]
[1646250537287,18.8314,100.99,100.9,23.1706]
[1646250537489,20.57389102,100.99,100.9,23.1706]
[1646250537687,32.57389102,100.99,100.9,23.1706]
[1646250538489,28.61189102,100.99,100.9,23.1706]
[1646250539088,28.61189102,100.99,100.9,23.4206]
[1646250539892,16.61189102,100.99,100.9,83.0206]
[1646250540090,18.8314,100.99,100.91,26.8438277]
[1646250540290,14.8694,100.99,100.91,78.68074783]
[1646250540492,14.8694,100.99,100.91,27.0938277]
[1646250542091,14.8694,100.99,100.91,155.55871685]
[1646250542492,14.8694,100.99,100.91,167.55871685]
[1646250542893,14.8694,100.99,100.91,155.55871685]
[1646250543091,14.8694,100.99,100.91,255.18871685]
[1646250543294,18.8268,101.01,100.91,257.73775688]
[1646250543492,18.8268,101.01,100.93,51.64716584]
[1646250543693,18.8268,101.01,100.93,146.75756584]
[1646250543894,3.96,101.04,100.93,248.93660587]
[1646250544092,3.96,101.05,100.95,214.52799264]
[1646250544293,3.96,101.07,100.95,226.77799264]
[1646250544493,14.8576,101.06,100.97,14.8571]
[1646250544695,3.959,101.05,100.97,62.0254715]
[1646250545894,14.8576,101.06,100.97,62.0254715]
[1646250546095,14.8576,101.06,100.97,0.25]
[1646250546295,3.959,101.05,100.96,35.9847]
[1646250546498,14.8576,101.06,100.96,23.9847]
[1646250547095,14.8576,101.06,100.96,70.36648168]
[1646250547298,14.8576,101.06,100.96,85.40948168]
[1646250548195,14.8576,101.06,100.97,0.12292172]
[1646250548397,14.8576,101.06,100.96,23.9847]
[1646250548999,3.96,101.05,100.96,23.9847]
[1646250549196,0.22641776,101.04,100.96,23.9847]
[1646250549397,3.96,101.03,100.96,23.7347]
[1646250550997,53.5077,101.03,100.96,23.7347]
[1646250551600,0.11559767,101.02,100.96,23.7347]
[1646250551798,14.8638,101.01,100.96,23.7347]
[1646250552600,14.8638,101.01,100.94,121.3887]
[1646250552799,14.8638,101.01,100.94,121.6387]
[1646250557908,84.6229,101.03,100.94,121.6387]
[1646250557909,18.8259,101.0,100.94,121.6387]
[1646250558108,14.8659,101.0,100.94,121.6387]
[1646250558308,0.12905282,100.99,100.94,49.0824]
[1646250558509,0.12905282,100.99,100.94,25.0057]
[1646250558908,7.372,101.01,100.94,25.0057]
[1646250559110,3.96,101.0,100.94,25.0057]
[1646250559311,3.96,101.0,100.94,24.7557]
[1646250559510,18.8276,101.01,100.94,24.7557]
[1646250560309,30.8276,101.01,100.94,24.7557]
[1646250560509,30.8276,101.01,100.92,23.3284]
[1646250560710,30.8276,101.01,100.92,23.5784]
[1646250560911,18.8276,101.01,100.92,25.87696561]
[1646250561109,14.8676,101.01,100.92,25.87696561]
[1646250562122,14.8676,101.01,100.93,117.05697092]
[1646250562311,14.8676,101.01,100.93,119.5843063]
[1646250563110,14.8676,101.01,100.93,219.2143063]
[1646250563310,14.8676,101.01,100.94,0.12453796]
[1646250565113,3.96,101.03,100.94,0.12453796]
[1646250565314,18.8218,101.03,100.95,159.23]
[1646250565515,14.8618,101.03,100.95,161.52174561]
[1646250565715,3.96,101.05,100.95,214.75343513]
[1646250565914,3.96,101.05,100.96,84.59636316]
[1646250566115,3.96,101.05,100.96,84.84636316]
[1646250566815,3.96,101.05,100.96,23.2071]
[1646250567018,18.8189,101.05,100.96,23.2071]
[1646250567417,18.8189,101.05,100.96,22.9571]
[1646250567616,40.75167508,101.05,100.96,22.9571]
[1646250567817,0.16610365,101.03,100.96,22.9571]
[1646250568018,3.96,101.02,100.94,24.5957]
[1646250568217,14.8682,101.01,100.94,24.5957]
[1646250568418,3.96,101.0,100.94,24.5957]
[1646250568720,27.2461,101.02,100.94,24.5957]
[1646250570020,14.8676,101.01,100.94,24.5957]
[1646250570221,3.96,101.0,100.94,24.5957]
[1646250570820,3.96,101.01,100.94,24.5957]
[1646250571823,18.8277,101.01,100.94,24.5957]
[1646250572027,14.8677,101.01,100.94,24.5957]
[1646250572926,18.8263,101.0,100.94,24.5957]
[1646250573125,14.8663,101.0,100.94,24.5957]
[1646250574326,14.8663,101.0,100.94,83.69735716]
[1646250574631,14.8631,101.02,100.94,245.47639719]
[1646250574826,14.8631,101.02,100.94,257.47639719]
[1646250576029,14.8631,101.02,100.94,272.33789719]
[1646250576330,14.8631,101.02,100.95,0.19317351]
[1646250576931,14.8631,101.02,100.94,272.33789719]
[1646250578152,14.8631,101.02,100.94,172.70789719]
[1646250578752,14.8631,101.02,100.94,177.70789719]
[1646250578953,14.8631,101.02,100.94,145.45002397]
[1646250579153,14.8631,101.02,100.94,145.20002397]
[1646250579356,14.8631,101.02,100.94,140.20002397]
[1646250579659,0.41937618,101.01,100.94,140.20002397]
[1646250579955,14.8631,101.02,100.94,140.20002397]
[1646250580360,14.8631,101.02,100.94,140.45002397]
[1646250583360,0.12921497,101.01,100.94,140.45002397]
[1646250583561,14.8631,101.02,100.94,240.08002397]
[1646250584260,14.8631,101.02,100.94,140.45002397]
[1646250586162,14.8631,101.02,100.94,240.08002397]
[1646250586361,14.8631,101.02,100.94,140.45002397]
[1646250587264,14.8631,101.02,100.94,240.08002397]
[1646250589767,14.8631,101.02,100.94,140.45002397]
[1646250589968,14.8631,101.02,100.94,240.08002397]
[1646250591166,3.96,101.04,100.98,159.23]
[1646250591366,5.1718479,101.05,100.98,196.00952811]
[1646250591568,3.959,101.07,100.98,198.55856814]
[1646250591766,3.959,101.09,100.98,198.55856814]
[1646250592170,3.959,101.09,100.98,203.55856814]
[1646250592370,3.959,101.09,100.98,226.20776814]
[1646250593071,18.813,101.09,101.0,61.60186695]
[1646250593268,18.813,101.09,101.01,23.832]
[1646250593469,18.813,101.09,101.01,132.97661232]
[1646250593770,18.813,101.09,101.01,85.67596109]
[1646250594570,18.813,101.09,101.01,185.30596109]
[1646250594769,18.813,101.09,101.01,85.67596109]
[1646250595570,18.813,101.09,101.01,100.17416109]
[1646250595771,18.813,101.09,101.01,199.80416109]
[1646250596070,18.813,101.09,101.02,0.14478692]
[1646250596472,14.854,101.09,101.01,199.80416109]
[1646250596671,14.854,101.09,101.02,71.6]
[1646250596970,14.854,101.09,101.02,59.85]
[1646250597171,18.8081,101.11,101.02,173.71696789]
[1646250597372,18.8081,101.11,101.04,59.6]
[1646250597574,14.8501,101.11,101.04,171.48]
[1646250597971,3.956,101.13,101.04,173.66408992]